Cogmind - Beta 12 X1 @@@ ROGUE MODE // 2022.07.07 @ 20:21:23 Player: Plexion Result: Self-destructed Performance ------------- Evolutions (2) 1000 Regions Visited (5) 1000 Robots Destroyed (54) 270 Value Destroyed (1570) 1570 Prototype IDs (23) 460 Alien Tech Used (0) 0 Bonus (460) 460 TOTAL SCORE: 4760 Bonus ------- High Alert Combat Kills 160 Aligned with FarCom 300 Cogmind --------- Core Integrity 260/550 Matter 300/300 Energy 100/100 System Corruption 6% Temperature Cool (0) Movement Treading (165) Location -8/Materials Parts ------- > --- POWER (1) -------- (None) > --- PROPULSION (3) --- Armored Treads Medium Treads > --- UTILITY (4) ------ High-capacity Storage Unit Machine Analyzer Improved Targeting Computer > --- WEAPON (3) ------- Ion Cannon Katana > --- INVENTORY (20) --- Light Deuterium Engine Medium Treads Medium Treads Medium Treads Improved Heat Sink 0b10 Alert Chip Small Laser Peak State ------------ > --- POWER ------------ Improved Ion Engine > --- PROPULSION ------- Armored Treads Armored Treads Armored Treads > --- UTILITY ---------- High-capacity Storage Unit Machine Analyzer Improved Targeting Computer > --- WEAPON ----------- Beam Cannon Ion Cannon Katana > --- INVENTORY -------- Light Deuterium Engine Light Treads Light Treads Light Treads Armored Treads Armored Treads Medium Treads Medium Treads Medium Treads Medium Treads Improved Heat Sink 0b10 Alert Chip Improved Targeting Computer Small Laser [Rating: 28] Favorites ----------- Power Light Ion Engine Engine Light Ion Engine Propulsion Light Treads Treads Light Treads Wheel Wheel Utility High-capacity Storage Unit Device Improved Heat Sink Storage High-capacity Storage Unit Processor Machine Analyzer Protection Light Armor Plating Weapon Assault Rifle Energy Gun EM Pulse Gun Energy Cannon Beam Cannon Ballistic Gun Assault Rifle Launcher Grenade Launcher Slashing Weapon Katana Build | -11 -10 -10 -10 -9 -8 ------- Run | Scr Mat Min Exi Min Mat Slots Evolved 4 | . . . . . 4 Power . | . . . . . . Propulsion 1 | . . . . . 1 Utility 2 | . . . . . 2 Weapon 1 | . . . . . 1 Parts Attached 35 | 6 2 . 2 3 22 Power 4 | 1 . . . . 3 Engine 4 | 1 . . . . 3 Core . | . . . . . . Reactor . | . . . . . . Propulsion 8 | 2 . . . . 6 Treads 7 | 2 . . . . 5 Leg . | . . . . . . Wheel 1 | . . . . . 1 Hover . | . . . . . . Flight . | . . . . . . Utility 11 | 1 2 . 1 . 7 Device 3 | . . . . . 3 Storage 3 | 1 1 . 1 . . Processor 4 | . . . . . 4 Hackware . | . . . . . . Protection 1 | . 1 . . . . Artifact . | . . . . . . Weapon 12 | 2 . . 1 3 6 Energy Gun 2 | 1 . . . . 1 Energy Cannon 5 | . . . 1 1 3 Ballistic Gun 1 | 1 . . . . . Ballistic Cannon . | . . . . . . Launcher 3 | . . . . 2 1 Special Weapon . | . . . . . . Impact Weapon . | . . . . . . Slashing Weapon 1 | . . . . . 1 Piercing Weapon . | . . . . . . Special Melee Weapon . | . . . . . . Unidentified Prototypes . | . . . . . . Corrupted Parts 1 | . . . . . 1 System Corruption 4 | . . . . . 4 Parts Lost 13 | . . . . . 13 Power 3 | . . . . . 3 Propulsion 3 | . . . . . 3 Utility 3 | . . . . . 3 Weapon 4 | . . . . . 4 Highest Loss Streak 3 | . . . . . 3 To Critical Strikes . | . . . . . . Average Slot Usage (%) 89 | . 98 100 100 100 78 Engine 11 | . 14 14 14 14 8 Treads 24 | . 28 28 28 28 20 Storage 11 | . 14 14 14 14 9 Processor 7 | . . . . . 15 Protection 7 | . 12 14 14 14 1 Energy Gun 3 | . 14 14 13 . . Energy Cannon 6 | . . . . . 12 Ballistic Gun 8 | . 14 14 14 14 3 Launcher 3 | . . . . 13 1 Slashing Weapon 1 | . . . . . 3 Naked Turns . | . . . . . . Heaviest Build 58 | 12 32 30 51 51 58 Greatest Support 68 | 40 40 40 40 40 68 Greatest Overweight (x) 4 | . . . 1 1 4 Average Overweight (x) . | . . . . 1 . Largest Inventory Capacity 20 | 8 15 15 20 20 20 Average Capacity 18 | 7 14 15 15 20 20 Most Carried 14 | 2 5 5 7 6 14 Average Carried 5 | . 3 5 5 6 6 Final Capacity 20 | 8 15 15 20 20 20 Final Carried 7 | 2 5 5 6 6 7 Class Distribution -------------------- 93% | Mutant 6% | Scavenger-Mutant Dominant Class ---------------- Mutant | -10/Materials Mutant | -10/Mines Mutant | -10/Exiles Mutant | -9/Mines Mutant | -8/Materials Resources | -11 -10 -10 -10 -9 -8 ----------- Run | Scr Mat Min Exi Min Mat Matter Collected 750 | 207 . . . 72 471 Remotely 44 | . . . . . 44 Salvage Created 1423 | . . . . 147 1276 Parts 98 | . . . . 16 82 Haulers Intercepted 1 | . . . . . 1 Recyclers Shooed . | . . . . . . Parts Field Recycled . | . . . . . . Retrieved Matter . | . . . . . . Parts Self-Destructed . | . . . . . . Prevented . | . . . . . . Kills | -11 -10 -10 -10 -9 -8 ------- Run | Scr Mat Min Exi Min Mat Combat Hostiles Destroyed 37 | . . . . 8 29 Melee 2 | . . . . . 2 Guns 4 | . . . . . 4 Cannons 14 | . . . . . 14 AOE 17 | . . . . 8 9 Classes Destroyed 12 | . . . . 3 9 Worker 5 | . . . . . 5 Builder 2 | . . . . . 2 Tunneler 3 | . . . . 1 2 Hauler 1 | . . . . . 1 Recycler 2 | . . . . . 2 Mechanic 1 | . . . . . 1 Operator 2 | . . . . . 2 Watcher 1 | . . . . . 1 Swarmer 11 | . . . . 3 8 Grunt 19 | . . . . 5 14 Duelist 1 | . . . . . 1 Sentry 6 | . . . . . 6 Best Kill Streak 9 | . . . . 5 9 Combat Bots Only 5 | . . . . 5 4 Max Kills in Single Turn 9 | . . . . 3 9 Gunslinging . | . . . . . . Exploded 3 | . . . . 3 2 Melee 1 | . . . . . 1 Uniques/NPCs Destroyed . | . . . . . . Combat | -11 -10 -10 -10 -9 -8 -------- Run | Scr Mat Min Exi Min Mat Damage Taken 2270 | . . . . 119 2151 Core 307 | . . . . 17 290 Absorbed by Shields . | . . . . . . Core Remaining (%) 96 | 100 . . . 93 . Volleys Fired 82 | . . . . 7 75 Largest 2 | . . . . 2 2 Hottest 120 | . . . . 50 120 Shots Fired 134 | . . . . 8 126 Gun 28 | . . . . 1 27 Cannon 86 | . . . . . 86 Launcher 20 | . . . . 7 13 Special . | . . . . . . Kinetic 10 | . . . . 1 9 Thermal 86 | . . . . . 86 Explosive 20 | . . . . 7 13 Electromagnetic 18 | . . . . . 18 Robot Hit Streak 13 | . . . . 4 13 Robot Miss Streak 2 | . . . . . 2 Penetration Max . | . . . . . . Secondary Targets . | . . . . . . Shots Hit Robots 107 | . . . . 4 103 Core Hits 83 | . . . . 14 69 Critical Kills . | . . . . . . Critical Parts Destroyed . | . . . . . . Critical Strikes 1 | . . . . . 1 Sever 1 | . . . . . 1 Melee Attacks 31 | . . . . . 31 Impact . | . . . . . . Slashing 31 | . . . . . 31 Piercing . | . . . . . . Sneak Attacks 1 | . . . . . 1 Combat Hostiles . | . . . . . . Follow-up Attacks . | . . . . . . Damage Inflicted 4787 | . . . . 464 4323 Guns 300 | . . . . 13 287 Cannons 1209 | . . . . . 1209 Explosions 2611 | . . . . 451 2160 Melee 667 | . . . . . 667 Ramming . | . . . . . . Kinetic 115 | . . . . 13 102 Thermal 1989 | . . . . 45 1944 Explosive 1831 | . . . . 406 1425 Electromagnetic 185 | . . . . . 185 Impact . | . . . . . . Slashing 667 | . . . . . 667 Piercing . | . . . . . . Highest Corruption 6 | . . . . . 6 Average Corruption 4 | . . . . . 4 Corruption Purged . | . . . . . . Corruption Blocked . | . . . . . . Effects 23 | . . . . . 23 Message Errors 4 | . . . . . 4 Matter Fused 3 | . . . . . 3 Heat Flow Errors 4 | . . . . . 4 Energy Discharges 7 | . . . . . 7 Data Loss (minor) 2 | . . . . . 2 Data Loss (major) 2 | . . . . . 2 Alerts 1 | . . . . . 1 Overload Shots . | . . . . . . Overflow Damage 427 | . . . . 10 417 Projectiles 6 | . . . . . 6 Explosions 373 | . . . . 10 363 Melee 48 | . . . . . 48 Knockbacks . | . . . . . . Impact . | . . . . . . Kinetic . | . . . . . . Secondary . | . . . . . . Self-Inflicted Damage 380 | . . . . 57 323 Shots 9 | . . . . 4 5 Rammed . | . . . . . . Targets Rammed . | . . . . . . Kicked . | . . . . . . Crushed . | . . . . . . Highest Temperature 255 | . . . . 12 255 Average Temperature 90 | . . . . 8 92 Received Heat Transfer 900 | . . . . 18 882 Effects 3 | . . . . . 3 Energy Bleed 1 | . . . . . 1 Interference 2 | . . . . . 2 Siege Activations . | . . . . . . Robots Corrupted . | . . . . . . Combat Hostiles . | . . . . . . Parts Fried . | . . . . . . Impact Corruptions . | . . . . . . Robots Melted . | . . . . . . Combat Hostiles . | . . . . . . Parts Melted 2 | . . . . . 2 Heat Transferred 2875 | . . . . 50 2825 Parts Sabotaged . | . . . . . . Parts Stolen . | . . . . . . Parts Stripped . | . . . . . . Power Chain Reactions 1 | . . . . . 1 Missiles Intercepted . | . . . . . . Alert | -11 -10 -10 -10 -9 -8 ------- Run | Scr Mat Min Exi Min Mat Peak Influence 819 | . 30 11 . 426 819 Initial 87 | . . 11 . . 87 Average 320 | . 12 11 . 307 397 Maximum Alert Level 3 | . . . . 2 3 Low Security (%) 17 | 100 100 100 . 4 3 Level 1 42 | . . . . 65 41 Level 2 38 | . . . . 30 51 Level 3 1 | . . . . . 3 Level 4 . | . . . . . . Level 5 . | . . . . . . High Security . | . . . . . . Max Security . | . . . . . . Squads Dispatched 4 | . . . . . 4 Investigation . | . . . . . . Extermination . | . . . . . . Reinforcement 3 | . . . . . 3 Assault 1 | . . . . . 1 Garrison . | . . . . . . Intercept . | . . . . . . Searches Triggered . | . . . . . . Construction Impeded 1 | . . . . . 1 Haulers Reinforced . | . . . . . . Active Scanning Responses . | . . . . . . Cargo Convoy Interrupts . | . . . . . . Stealth | -11 -10 -10 -10 -9 -8 --------- Run | Scr Mat Min Exi Min Mat Distress Signals 4 | . . . . 1 3 Communications Jammed . | . . . . . . Distress Signals . | . . . . . . Times Spotted 53 | . 2 . . 7 44 Peak Tracking Total 6 | . 2 . . 3 6 Tactical Retreats 4 | . . . . . 4 Traps | -11 -10 -10 -10 -9 -8 ------- Run | Scr Mat Min Exi Min Mat Traps Triggered 1 | . . . . . 1 Indirectly . | . . . . . . Trap Hack Attempts . | . . . . . . Triggered . | . . . . . . Disarmed . | . . . . . . Reprogrammed . | . . . . . . Reused . | . . . . . . Traps Extracted . | . . . . . . Installed . | . . . . . . Triggered . | . . . . . . Machines | -11 -10 -10 -10 -9 -8 ---------- Run | Scr Mat Min Exi Min Mat Machines Disabled 16 | . . . . 6 10 Max in Single Turn 9 | . . . . 3 9 Machines Sabotaged . | . . . . . . Garrisons Compromised . | . . . . . . Overloaded Fab Kills . | . . . . . . Hacking | -11 -10 -10 -10 -9 -8 --------- Run | Scr Mat Min Exi Min Mat Machines Accessed 6 | . 1 . 2 . 3 Terminals 4 | . 1 . . . 3 Fabricators . | . . . . . . Repair Stations . | . . . . . . Recycling Units . | . . . . . . Scanalyzers . | . . . . . . Garrison Access . | . . . . . . Total Hacks 12 | . 2 . 2 . 8 Successful 7 | . 2 . 2 . 3 Failed 5 | . . . . . 5 Catastrophic 1 | . . . . . 1 Database Lockouts . | . . . . . . Manual 6 | . 1 . 1 . 4 Terminals 10 | . 2 . . . 8 Fabricators . | . . . . . . Repair Stations . | . . . . . . Recycling Units . | . . . . . . Scanalyzers . | . . . . . . Garrison Access . | . . . . . . Terminal Hacks 7 | . 2 . 2 . 3 Record 1 | . . . 1 . . Robot Analysis 2 | . 1 . . . 1 Hauler Manifests 1 | . 1 . . . . Zone Layout 2 | . . . . . 2 EX-Prototype ID Bank 1 | . . . 1 . . Fabricator Hacks . | . . . . . . Repair Station Hacks . | . . . . . . Recycling Unit Hacks . | . . . . . . Scanalyzer . | . . . . . . Garrison Access Hacks . | . . . . . . Unauthorized Hacks . | . . . . . . Terminals . | . . . . . . Fabricators . | . . . . . . Repair Stations . | . . . . . . Recycling Units . | . . . . . . Scanalyzers . | . . . . . . Garrison Access . | . . . . . . Data Cores Recovered 1 | . . . . . 1 Used . | . . . . . . Hacking Detections 4 | . 1 . . . 3 Full Trace Events . | . . . . . . Feedback Events . | . . . . . . Feedback Blocked . | . . . . . . Robot Schematics Acquired . | . . . . . . Robots Built . | . . . . . . Authchips . | . . . . . . Time . | . . . . . . Total Robot Build Rating . | . . . . . . Part Schematics Acquired . | . . . . . . Parts Built . | . . . . . . Authchips . | . . . . . . Time . | . . . . . . Total Part Build Rating . | . . . . . . Parts Repaired . | . . . . . . Time . | . . . . . . Parts Recycled . | . . . . . . Recycled Matter . | . . . . . . Retrieved Matter . | . . . . . . Retrieved Components . | . . . . . . Parts Scanalyzed . | . . . . . . Part Schematics Acquired . | . . . . . . Parts Damaged . | . . . . . . Bothacking | -11 -10 -10 -10 -9 -8 ------------ Run | Scr Mat Min Exi Min Mat Used RIF Installer . | . . . . . . Robots Hacked . | . . . . . . Non-combat . | . . . . . . Combat . | . . . . . . Robot Hacks Applied . | . . . . . . Relay Couplers Released . | . . . . . . Fabnet Peak Effective % . | . . . . . . Robots Rewired . | . . . . . . Allies Hacked . | . . . . . . Hacks Repelled . | . . . . . . Allies | -11 -10 -10 -10 -9 -8 -------- Run | Scr Mat Min Exi Min Mat Total Allies . | . . . . . . Largest Group . | . . . . . . Highest-Rated Group . | . . . . . . Highest-Rated Ally . | . . . . . . Total Orders . | . . . . . . Ally Attacks . | . . . . . . Total Damage . | . . . . . . Kills . | . . . . . . Allies Corrupted . | . . . . . . Allies Melted . | . . . . . . Intel | -11 -10 -10 -10 -9 -8 ------- Run | Scr Mat Min Exi Min Mat Robot Analysis Total 2 | . 1 . . . 1 Derelict Logs Recovered 2 | . . . . 2 . Drone Launches . | . . . . . . Drone Recoveries . | . . . . . . Exploration | -11 -10 -10 -10 -9 -8 ------------- Run | Scr Mat Min Exi Min Mat Turns Passed 2953 | 74 219 44 499 638 1479 Spaces Moved 1313 | 43 132 28 296 256 558 Core 4 | 4 . . . . . Treads 1244 | 39 132 28 296 256 493 Legs . | . . . . . . Wheels 65 | . . . . . 65 Hover . | . . . . . . Flight . | . . . . . . Fastest Speed 50 | 50 160 160 160 240 140 Average Speed 189 | 149 160 160 167 240 190 Slowest Speed 320 | 160 160 160 240 240 320 Overloaded Moves . | . . . . . . Propulsion Burnouts . | . . . . . . Robots Hopped . | . . . . . . Cave-ins Triggered . | . . . . . . Exploration Rate (%) 41 | 4 32 11 69 78 54 Regions Visited 5 Branch Regions 3 Pre-discovered Areas 1 | . . . 1 . . Known Exits Taken . | . . . . . . Unknown Exits Taken 5 | 1 1 1 1 1 . Scrap Searched . | . . . . . . Spaces Dug 14 | . . . . . 14 Terrain Destroyed 199 | . . . . 43 156 Melee 6 | . . . . . 6 Projectile 2 | . . . . . 2 AOE 191 | . . . . 43 148 Terrain Rammed . | . . . . . . Walls Destroyed . | . . . . . . Machines Disabled . | . . . . . . Actions | -11 -10 -10 -10 -9 -8 --------- Run | Scr Mat Min Exi Min Mat Total 1587 | 50 140 27 299 271 800 Wait 96 | . 2 . . 6 88 Move 1308 | 42 131 27 295 255 558 Hop . | . . . . . . Pick Up 18 | 2 3 . 1 . 12 Fast Attach 17 | 6 2 . . . 9 Attach 8 | . . . . . 8 Detach 5 | . 1 . . . 4 Swap 10 | . . . 2 3 5 Drop 12 | . 1 . 1 . 10 Fire 82 | . . . . 7 75 Melee 31 | . . . . . 31 Ram . | . . . . . . Kick . | . . . . . . Crush . | . . . . . . Escape Stasis . | . . . . . . Rewire . | . . . . . . Trap . | . . . . . . Miscellaneous . | . . . . . . Route ------- -11/Scrapyard -10/Materials -10/Mines -10/Exiles -9/Mines -8/Materials (discovered 2 exits: [*Fac x2]) History --------- Turn | Location | Event 7 | -11/Scrapyard | Discovered new exit (range 15) 75 | -11/Scrapyard | Entered Materials 233 | -10/Materials | Discovered new exit (range 16) 294 | -10/Materials | Entered Mines 295 | -10/Mines | Assembled infested the area 313 | -10/Mines | Build established: Mutant 331 | -10/Mines | Deemed a non-threat by the Exiles lab entrance 331 | -10/Mines | Discovered new exit (range 5) 338 | -10/Mines | Entered Exiles 377 | -10/Exiles | Met 8R-AWN 404 | -10/Exiles | Met EX-HEX 463 | -10/Exiles | Met EX-DEC 490 | -10/Exiles | Learned location of Zion (-7) 529 | -10/Exiles | Met EX-BIN 550 | -10/Exiles | Aligned with FarCom system 551 | -10/Exiles | Given EX-Vault access code 593 | -10/Exiles | Opened EX-Vault 604 | -10/Exiles | Found 0b10 Alert Chip 637 | -10/Exiles | Warned to stay clear of 0b10 Research branches 817 | -10/Exiles | Discovered new exit (range 10) 837 | -10/Exiles | Left Exiles lab with 0b10 Alert Chip 837 | -10/Exiles | Entered Mines 879 | -9/Mines | Met a Derelict bent on vengeance 1117 | -9/Mines | Learned Materials stockpile data 1285 | -9/Mines | Learned Materials emergency access door positions 1446 | -9/Mines | Discovered new exit (range 13) 1475 | -9/Mines | Entered Materials 1475 | -8/Materials | Evolved 4 slots: Propulsion x1, Utility x2, Weapon x1 2434 | -8/Materials | Discovered new exit (range 13) 2675 | -8/Materials | First assault squad dispatched 2714 | -8/Materials | Discovered new exit (range 4) 2784 | -8/Materials | Core integrity fell below 50% 2936 | -8/Materials | Lost 3 parts (1p1n1w) 2954 | -8/Materials | Self-destructed Last Messages --------------- 02905_ K-01 Serf destroyed. 02905_ Recycling Unit disabled. 02911_ U-05 Engineer lays Concrete. 02913_ System corrupted: Energy discharge (-22). 02913_ U-05 Engineer builds a Wall. 02917_ U-05 Engineer lays Concrete. 02917_ Destroyed Particle Gun. 02919_ U-05 Engineer lays Concrete. 02921_ U-05 Engineer builds a Wall. 02926_ U-05 Engineer lays Concrete. 02928_ U-05 Engineer builds a Wall. 02931_ Sneak attack on W-25 Informer. 02931_ W-25 Informer destroyed. 02931_ T-07 Excavator is excavating. 02932_ U-05 Engineer lays Concrete. 02935_ K-01 Serf collects debris. 02935_ T-07 Excavator is excavating. 02942_ K-01 Serf collects debris. 02944_ T-07 Excavator is excavating. 02951_ System corrupted: Substantial component data lost. Map ----- +----------------------------------------------------+ | "" """ #????????????????# # # ##"###+## | | #????????????????# < # + T | | "Y" ########?????????# " ]]] # ### | | "" # """""########## #*]]!! # #?# | | " " # #[]] ] ## ####?# | | ##" " " ###%##### #????# ##### | | #?###???# #????# #???# | | % ########???????# #????# #???# | | " "#?????????????# ######+##### | | "#?????????????# ## # | | "########??????# ## """ # | | % ;#??????# ## """ "T" # | | * = =[% #???????# ## """ + | | % !%= * #???????# ## """ / # | | ######" ""#######% #######?# ## # | | #????#""" ## ###??# ####????# ## ] # | | ###+################????# # #????# ## # | | #????????????# #???????########+### | | """" """" #????????????# a# #?????# #?? | | """" """" #????????????# ###???????######## #?? | | """" """" #????????????# #???+#######?????# #?# | | ??????????????# #????# #????##!### | | ##########??????????????# # * # !=###### ## | | ??????????????????# # + !* = | | """ #?????????????????# # ] # *###### # | | """ #?????????????????#@kk#????# #######+## | | """ #?????????????????# #????## ##### # | | #????????????????## #?????#g#???# # | | """ #????????????????# ###### #???# # | | """ #????????????????# !#???# = # | | """ #????????????????# % ############# | | ?????????????????# | | #######????????????????# ####g ############# | | ???????????????????????#######??# #?"""?"""???# | | ????????????????????????????????# #?"""?"""???# | | ????????????????????????????????# +?"""?"""?#### | | ????????????????????????????????# #?????????# | | ########????????????????????????# #?????????# [ | | #????????????????????????# #?????????# | | #????????????????????????# ###?????????# "" | | #????????????????????????# #?????????????"" | | #????????????????????????# #?????????????"" | | "" #????????????????????????# #??######???? "" | | "" =[ !#????????????????????????# ####!!!!##????"" | | "" =[ ???????????????????????####=## ! !#?????? | | =[????????????????????????# #! !#?????? | | ####?????????????????????######## ### ####### | | ?????????????????? !%!% ^ | | ?????????????????? % [! ^^ | | ?????????????????? [ ^ [ | +----------------------------------------------------+ Best States ------------- Heat Dissipation 50 Energy Generation 12 Energy Capacity 265 Matter Stores 300 Matter Capacity 300 Sight Range 16 Terrain Scan Density 10 Armor Coverage 150 Evasion (%) 40 Targeting Accuracy 6 Recoil Reduction 3 Item Schematics ----------------- None Robot Schematics ------------------ None Fabricated ------------ Nothing Alien Tech Used ----------------- None Achievements -------------- None Challenges ------------ None Game ------ Seed DimensionalNovaComputer Manual? 0 Play Time 00:18:38 Cumulative 250.3 hours Start 2022.07.07 @ 20:05:19 End 2022.07.07 @ 20:21:23 Sessions 1 Manual Loads 0 Difficulty Rogue Special Mode None Game No. 354 Rogue 267 Adventurer 87 Explorer 0 Win Type - Total 6 Types 3/0/2/1/0/0/0/0/0 Lore% 70 Gallery% 78 Achievement% 67 Wizard Run 0 Options --------- ASCII 0 Keyboard 1 Movement Numpad Keybinds 0 Fullscreen 1 Font 18/Smallcaps Map View 76x50 Tactical HUD 1 Map Filters NONE Filters NONE Steam 1 RUN: 8a7cc974-4ddf-47a0-a8c7-368132923b43